[Event "*** SCC Grand Prix: Titled Tuesday Blitz"]
[Site "Chess.com"]
[Date "2020.07.21"]
[Round "1"]
[White "RaunakSadhwani2005"]
[Black "Caterpiller35"]
[Result "1-0"]
[WhiteElo "2993"]
[BlackElo "2453"]
[TimeControl "180+1"]
[EndTime "10:07:40 PDT"]
[Termination "RaunakSadhwani2005 won on time"]

1. d4 {[%clk 0:02:55.2]} 1... Nf6 {[%clk 0:02:59.6]} 2. Bf4 {[%clk 0:02:54.7]}
2... d5 {[%clk 0:02:58.3]} 3. e3 {[%clk 0:02:54.7]} 3... c5 {[%clk 0:02:58.7]}
4. c3 {[%clk 0:02:54.2]} 4... Nc6 {[%clk 0:02:58.9]} 5. Nd2 {[%clk 0:02:54]}
5... e6 {[%clk 0:02:53.9]} 6. Ngf3 {[%clk 0:02:53.9]} 6... Bd6 {[%clk 0:02:54]}
7. Bg3 {[%clk 0:02:49.7]} 7... O-O {[%clk 0:02:52.7]} 8. Bd3 {[%clk 0:02:49.6]}
8... b6 {[%clk 0:02:51.6]} 9. e4 {[%clk 0:02:29.9]} 9... Be7 {[%clk 0:02:50.8]}
10. e5 {[%clk 0:02:23.3]} 10... Nd7 {[%clk 0:02:50.4]} 11. O-O {[%clk
0:02:10.4]} 11... f6 {[%clk 0:02:45.3]} 12. exf6 {[%clk 0:02:09.7]} 12... Nxf6
{[%clk 0:02:44.4]} 13. Re1 {[%clk 0:02:10.1]} 13... Bd6 {[%clk 0:02:39.7]} 14.
Qe2 {[%clk 0:01:54.9]} 14... Bxg3 {[%clk 0:02:37]} 15. hxg3 {[%clk 0:01:55.8]}
15... Bd7 {[%clk 0:02:30.9]} 16. Bb5 {[%clk 0:01:47.7]} 16... Rc8 {[%clk
0:02:12.7]} 17. Bxc6 {[%clk 0:01:47.6]} 17... Rxc6 {[%clk 0:02:12.7]} 18. Ne5
{[%clk 0:01:48.2]} 18... Rc7 {[%clk 0:02:06.4]} 19. Ndf3 {[%clk 0:01:41.4]}
19... Bc8 {[%clk 0:02:04.3]} 20. Rad1 {[%clk 0:01:38.8]} 20... Ne4 {[%clk
0:01:59.4]} 21. Qe3 {[%clk 0:01:38.8]} 21... Qf6 {[%clk 0:01:56]} 22. Nd3 {[%clk
0:01:15.9]} 22... Ba6 {[%clk 0:01:50.3]} 23. Nf4 {[%clk 0:01:06.4]} 23... g5
{[%clk 0:01:43.2]} 24. Nh5 {[%clk 0:01:06.5]} 24... Qg6 {[%clk 0:01:38]} 25. g4
{[%clk 0:01:06.8]} 25... h6 {[%clk 0:01:06.6]} 26. Ne5 {[%clk 0:01:06.2]} 26...
Qe8 {[%clk 0:01:02.8]} 27. f3 {[%clk 0:01:04.4]} 27... Nf6 {[%clk 0:01:00.3]}
28. Nxf6+ {[%clk 0:00:53.3]} 28... Rxf6 {[%clk 0:01:01.2]} 29. Kf2 {[%clk
0:00:53.1]} 29... Qb5 {[%clk 0:00:56.2]} 30. Rd2 {[%clk 0:00:47.2]} 30... cxd4
{[%clk 0:00:53.8]} 31. Qxd4 {[%clk 0:00:41.3]} 31... Rf4 {[%clk 0:00:53.6]} 32.
Qe3 {[%clk 0:00:41.2]} 32... Qc5 {[%clk 0:00:30.1]} 33. g3 {[%clk 0:00:35.6]}
33... Rf6 {[%clk 0:00:27.4]} 34. Kg2 {[%clk 0:00:35.5]} 34... Bb7 {[%clk
0:00:26.4]} 35. Rd4 {[%clk 0:00:33.7]} 35... Qf8 {[%clk 0:00:24.2]} 36. Rh1
{[%clk 0:00:32.7]} 36... Kg7 {[%clk 0:00:23.5]} 37. a4 {[%clk 0:00:29.8]} 37...
Qd6 {[%clk 0:00:16.2]} 38. Rd2 {[%clk 0:00:27.8]} 38... Rc8 {[%clk 0:00:09.5]}
39. Qd4 {[%clk 0:00:24.2]} 39... Rcf8 {[%clk 0:00:08.6]} 40. a5 {[%clk 0:00:19]}
40... Qc5 {[%clk 0:00:07.5]} 41. axb6 {[%clk 0:00:18.5]} 41... axb6 {[%clk
0:00:07.7]} 42. Ra1 {[%clk 0:00:18.8]} 42... Bc8 {[%clk 0:00:02.7]} 43. Ra7+
{[%clk 0:00:18.1]} 43... Kg8 {[%clk 0:00:03]} 44. Qd3 {[%clk 0:00:18.6]} 1-0

[Event "*** SCC Grand Prix: Titled Tuesday Blitz"]
[Site "Chess.com"]
[Date "2020.07.21"]
[Round "1"]
[White "boo786"]
[Black "BocharovD"]
[Result "1-0"]
[WhiteElo "2403"]
[BlackElo "2748"]
[TimeControl "180+1"]
[EndTime "10:07:40 PDT"]
[Termination "boo786 won by checkmate"]

1. Nf3 {[%clk 0:02:58.1]} 1... c5 {[%clk 0:02:59.7]} 2. c4 {[%clk 0:02:56.5]}
2... Nc6 {[%clk 0:02:54.6]} 3. d4 {[%clk 0:02:55.7]} 3... cxd4 {[%clk
0:02:48.9]} 4. Nxd4 {[%clk 0:02:55.2]} 4... Nf6 {[%clk 0:02:49.6]} 5. Nc3 {[%clk
0:02:53.5]} 5... e6 {[%clk 0:02:49.5]} 6. g3 {[%clk 0:02:49.5]} 6... Qb6 {[%clk
0:02:46.2]} 7. Nb3 {[%clk 0:02:49]} 7... Ne5 {[%clk 0:02:41.1]} 8. e4 {[%clk
0:02:44.3]} 8... Bb4 {[%clk 0:02:40]} 9. Qe2 {[%clk 0:02:44.2]} 9... d6 {[%clk
0:02:39.8]} 10. Bd2 {[%clk 0:02:34.6]} 10... O-O {[%clk 0:02:33.2]} 11. O-O-O
{[%clk 0:02:29]} 11... a5 {[%clk 0:02:05.4]} 12. Be3 {[%clk 0:02:04.2]} 12...
Qc6 {[%clk 0:02:00.7]} 13. Nd4 {[%clk 0:01:57.4]} 13... Qa6 {[%clk 0:01:54.9]}
14. Ndb5 {[%clk 0:01:52.6]} 14... Qc6 {[%clk 0:01:54.5]} 15. Nd4 {[%clk
0:01:51.6]} 15... Qe8 {[%clk 0:01:49.6]} 16. Ndb5 {[%clk 0:01:49.7]} 16... Qe7
{[%clk 0:01:45]} 17. a3 {[%clk 0:01:41.1]} 17... Bc5 {[%clk 0:01:43.5]} 18. Bxc5
{[%clk 0:01:37.3]} 18... dxc5 {[%clk 0:01:42.2]} 19. f4 {[%clk 0:01:32.2]} 19...
Nc6 {[%clk 0:01:41.2]} 20. e5 {[%clk 0:01:30.1]} 20... Nd7 {[%clk 0:01:41]} 21.
Bg2 {[%clk 0:01:22.3]} 21... Nd4 {[%clk 0:01:40.9]} 22. Nxd4 {[%clk 0:01:19.5]}
22... cxd4 {[%clk 0:01:41.8]} 23. Rxd4 {[%clk 0:01:17.1]} 23... Nc5 {[%clk
0:01:41]} 24. Rd6 {[%clk 0:01:11.1]} 24... Bd7 {[%clk 0:01:38]} 25. Rhd1 {[%clk
0:01:06]} 25... Bc6 {[%clk 0:01:36.9]} 26. Bxc6 {[%clk 0:01:03.1]} 26... bxc6
{[%clk 0:01:35.8]} 27. Qe3 {[%clk 0:00:59.3]} 27... Qa7 {[%clk 0:01:31.1]} 28.
Kc2 {[%clk 0:00:39]} 28... Rfb8 {[%clk 0:01:27]} 29. Na4 {[%clk 0:00:29.7]}
29... Qb7 {[%clk 0:01:14]} 30. Qxc5 {[%clk 0:00:22]} 30... Qb3+ {[%clk
0:01:12.5]} 31. Kc1 {[%clk 0:00:20.1]} 31... Qxa4 {[%clk 0:01:12.7]} 32. Qxc6
{[%clk 0:00:19.6]} 32... Qb3 {[%clk 0:01:11.3]} 33. Qb5 {[%clk 0:00:13.2]} 33...
Qe3+ {[%clk 0:01:06.2]} 34. Kb1 {[%clk 0:00:11.5]} 34... h5 {[%clk 0:01:04.7]}
35. Qa4 {[%clk 0:00:08.8]} 35... h4 {[%clk 0:00:56.4]} 36. Qc2 {[%clk
0:00:07.1]} 36... hxg3 {[%clk 0:00:50.9]} 37. hxg3 {[%clk 0:00:07]} 37... Qxg3
{[%clk 0:00:51.2]} 38. Qd2 {[%clk 0:00:07.1]} 38... Qf3 {[%clk 0:00:38.7]} 39.
c5 {[%clk 0:00:07]} 39... Qe4+ {[%clk 0:00:19.2]} 40. Ka1 {[%clk 0:00:06]} 40...
Rc8 {[%clk 0:00:17.4]} 41. c6 {[%clk 0:00:05.9]} 41... Rxc6 {[%clk 0:00:15.9]}
42. Rd8+ {[%clk 0:00:05.8]} 42... Rxd8 {[%clk 0:00:09.7]} 43. Qxd8+ {[%clk
0:00:04]} 43... Kh7 {[%clk 0:00:10.6]} 44. Qh4+ {[%clk 0:00:03.6]} 44... Kg6
{[%clk 0:00:11]} 45. Qg5+ {[%clk 0:00:02.6]} 45... Kh7 {[%clk 0:00:11.2]} 46.
Qh5+ {[%clk 0:00:02.7]} 46... Kg8 {[%clk 0:00:11.6]} 47. Rd8# {[%clk 0:00:02.5]}
1-0

[Event "*** SCC Grand Prix: Titled Tuesday Blitz"]
[Site "Chess.com"]
[Date "2020.07.21"]
[Round "1"]
[White "vovachesss"]
[Black "tandaleo"]
[Result "0-1"]
[WhiteElo "2614"]
[BlackElo "2315"]
[TimeControl "180+1"]
[EndTime "10:07:40 PDT"]
[Termination "tandaleo won by resignation"]

1. d4 {[%clk 0:02:55.5]} 1... d5 {[%clk 0:02:58.6]} 2. Bf4 {[%clk 0:02:55.3]}
2... Nf6 {[%clk 0:02:57.6]} 3. e3 {[%clk 0:02:55.8]} 3... e6 {[%clk 0:02:57.9]}
4. Nf3 {[%clk 0:02:55.8]} 4... Bd6 {[%clk 0:02:58.8]} 5. Bg3 {[%clk 0:02:56.4]}
5... O-O {[%clk 0:02:58.6]} 6. Bd3 {[%clk 0:02:56]} 6... b6 {[%clk 0:02:58.7]}
7. O-O {[%clk 0:02:56.3]} 7... Ba6 {[%clk 0:02:58.7]} 8. Nbd2 {[%clk 0:02:54.5]}
8... Qe7 {[%clk 0:02:46.1]} 9. c4 {[%clk 0:02:51]} 9... c5 {[%clk 0:02:39.5]}
10. Rc1 {[%clk 0:02:37.5]} 10... Nbd7 {[%clk 0:02:38.1]} 11. Qe2 {[%clk
0:02:33.5]} 11... Rac8 {[%clk 0:02:34.2]} 12. Rfd1 {[%clk 0:02:27.2]} 12... Rfd8
{[%clk 0:02:19.6]} 13. e4 {[%clk 0:02:25.2]} 13... Bxg3 {[%clk 0:01:52.1]} 14.
hxg3 {[%clk 0:02:23.4]} 14... dxc4 {[%clk 0:01:45.8]} 15. Bxc4 {[%clk
0:02:08.3]} 15... Bxc4 {[%clk 0:01:45.1]} 16. Nxc4 {[%clk 0:02:09.2]} 16... cxd4
{[%clk 0:01:44.5]} 17. Nxd4 {[%clk 0:02:08.7]} 17... Qb4 {[%clk 0:01:32.6]} 18.
a3 {[%clk 0:02:03.4]} 18... Qe7 {[%clk 0:01:29.1]} 19. b4 {[%clk 0:01:52.5]}
19... g6 {[%clk 0:01:26.8]} 20. b5 {[%clk 0:01:45.9]} 20... Nb8 {[%clk
0:01:15.5]} 21. Qe3 {[%clk 0:01:02.5]} 21... e5 {[%clk 0:01:13.3]} 22. Nc6
{[%clk 0:00:43.1]} 22... Nxc6 {[%clk 0:01:11.2]} 23. bxc6 {[%clk 0:00:40.8]}
23... Rxd1+ {[%clk 0:01:10.9]} 24. Rxd1 {[%clk 0:00:40.4]} 24... Rxc6 {[%clk
0:01:10.7]} 25. Qd3 {[%clk 0:00:34.2]} 25... Kg7 {[%clk 0:01:02.1]} 26. Ne3
{[%clk 0:00:29.7]} 26... Qc7 {[%clk 0:00:57.2]} 27. a4 {[%clk 0:00:17.1]} 27...
Rc3 {[%clk 0:00:56.8]} 28. Qb5 {[%clk 0:00:16.6]} 28... Rc1 {[%clk 0:00:53.4]}
29. Rxc1 {[%clk 0:00:13.2]} 29... Qxc1+ {[%clk 0:00:53.5]} 30. Kh2 {[%clk
0:00:14.1]} 30... Qc5 {[%clk 0:00:53.2]} 31. Qd3 {[%clk 0:00:12.3]} 31... Qd4
{[%clk 0:00:52.6]} 32. Qa6 {[%clk 0:00:11.1]} 32... Nxe4 {[%clk 0:00:52]} 33.
Kg1 {[%clk 0:00:03.1]} 33... Qa1+ {[%clk 0:00:45.3]} 34. Qf1 {[%clk 0:00:02.6]}
34... Qxf1+ {[%clk 0:00:44.4]} 35. Kxf1 {[%clk 0:00:03.5]} 35... Kf6 {[%clk
0:00:44.8]} 36. Ke2 {[%clk 0:00:03.6]} 36... Ke6 {[%clk 0:00:44.6]} 37. Kd3
{[%clk 0:00:04.5]} 37... Nc5+ {[%clk 0:00:44.4]} 38. Kc4 {[%clk 0:00:05.4]}
38... Nxa4 {[%clk 0:00:45.3]} 39. Kb5 {[%clk 0:00:06.1]} 39... Nc5 {[%clk
0:00:44.5]} 40. Kc6 {[%clk 0:00:06.5]} 40... Nd3 {[%clk 0:00:42.1]} 41. Kb7
{[%clk 0:00:05.6]} 41... Nxf2 {[%clk 0:00:35.9]} 42. Kxa7 {[%clk 0:00:05.8]}
42... b5 {[%clk 0:00:36.3]} 43. Kb6 {[%clk 0:00:06.2]} 43... b4 {[%clk
0:00:36.7]} 44. Kc5 {[%clk 0:00:06.1]} 44... b3 {[%clk 0:00:37]} 45. Nc4 {[%clk
0:00:06.6]} 45... e4 {[%clk 0:00:37.1]} 46. Kd4 {[%clk 0:00:07.3]} 46... f5
{[%clk 0:00:36.5]} 47. Ke3 {[%clk 0:00:06]} 47... Ng4+ {[%clk 0:00:35.6]} 48.
Kd2 {[%clk 0:00:06.2]} 48... Kd5 {[%clk 0:00:35.1]} 49. Kc3 {[%clk 0:00:05.7]}
49... e3 {[%clk 0:00:30.5]} 50. Nb2 {[%clk 0:00:05.8]} 50... Ke4 {[%clk
0:00:25.4]} 51. Kxb3 {[%clk 0:00:05.8]} 51... e2 {[%clk 0:00:25.7]} 0-1

[Event "*** SCC Grand Prix: Titled Tuesday Blitz"]
[Site "Chess.com"]
[Date "2020.07.21"]
[Round "1"]
[White "elohunter1999"]
[Black "Konavets"]
[Result "1-0"]
[WhiteElo "2477"]
[BlackElo "3049"]
[TimeControl "180+1"]
[EndTime "10:07:41 PDT"]
[Termination "elohunter1999 won by checkmate"]

1. e4 {[%clk 0:03:00.8]} 1... c6 {[%clk 0:02:51.2]} 2. d4 {[%clk 0:02:59.7]}
2... d5 {[%clk 0:02:52.1]} 3. e5 {[%clk 0:02:59.8]} 3... Bf5 {[%clk 0:02:49.4]}
4. Nf3 {[%clk 0:02:59.9]} 4... e6 {[%clk 0:02:49.5]} 5. Be2 {[%clk 0:03:00.1]}
5... Ne7 {[%clk 0:02:49.7]} 6. O-O {[%clk 0:02:59.5]} 6... h6 {[%clk 0:02:50.2]}
7. Nbd2 {[%clk 0:02:56.1]} 7... Nd7 {[%clk 0:02:50]} 8. Nb3 {[%clk 0:02:55.9]}
8... g5 {[%clk 0:02:49.4]} 9. Ne1 {[%clk 0:02:54.3]} 9... Qc7 {[%clk 0:02:46.6]}
10. Nd3 {[%clk 0:02:51.4]} 10... Bg7 {[%clk 0:02:39.3]} 11. f4 {[%clk
0:02:42.6]} 11... O-O-O {[%clk 0:02:37.3]} 12. a4 {[%clk 0:02:40]} 12... f6
{[%clk 0:02:34.5]} 13. a5 {[%clk 0:02:22.2]} 13... Ng6 {[%clk 0:02:29.8]} 14.
exf6 {[%clk 0:02:04.1]} 14... Bxf6 {[%clk 0:02:20.6]} 15. Ne5 {[%clk 0:01:54.5]}
15... Nxf4 {[%clk 0:02:14.2]} 16. Bxf4 {[%clk 0:01:47.9]} 16... gxf4 {[%clk
0:02:14.2]} 17. Nf7 {[%clk 0:01:47.9]} 17... a6 {[%clk 0:02:14.4]} 18. Nxh8
{[%clk 0:01:45.1]} 18... Rxh8 {[%clk 0:02:12.1]} 19. Bg4 {[%clk 0:01:42.8]}
19... Re8 {[%clk 0:01:01]} 20. Bxf5 {[%clk 0:01:33.3]} 20... exf5 {[%clk
0:01:01.9]} 21. Qh5 {[%clk 0:01:28.5]} 21... Rf8 {[%clk 0:00:39.3]} 22. Kh1
{[%clk 0:01:22.6]} 22... Bg5 {[%clk 0:00:37.1]} 23. Nc5 {[%clk 0:00:58.2]} 23...
Nf6 {[%clk 0:00:29.8]} 24. Qg6 {[%clk 0:00:53.6]} 24... Re8 {[%clk 0:00:11]} 25.
Qxf5+ {[%clk 0:00:48.5]} 25... Kb8 {[%clk 0:00:11]} 26. Rae1 {[%clk 0:00:48.2]}
26... Rg8 {[%clk 0:00:08.3]} 27. Re6 {[%clk 0:00:40.8]} 27... Rf8 {[%clk
0:00:08.2]} 28. Rxf6 {[%clk 0:00:37]} 28... Rxf6 {[%clk 0:00:05.7]} 29. Nd7+
{[%clk 0:00:36.8]} 29... Ka7 {[%clk 0:00:06.2]} 30. Nxf6 {[%clk 0:00:36.8]}
30... Qxa5 {[%clk 0:00:06.9]} 31. Nh5 {[%clk 0:00:26.6]} 31... Qb5 {[%clk
0:00:06.6]} 32. Qd3 {[%clk 0:00:10]} 32... Qxb2 {[%clk 0:00:06.7]} 33. h3 {[%clk
0:00:10.3]} 33... Bd8 {[%clk 0:00:04]} 34. Nxf4 {[%clk 0:00:10.5]} 34... Bb6
{[%clk 0:00:03.9]} 35. Rd1 {[%clk 0:00:10]} 35... a5 {[%clk 0:00:04.1]} 36. Ne6
{[%clk 0:00:10.3]} 36... Qb4 {[%clk 0:00:04.2]} 37. Nc5 {[%clk 0:00:10.4]} 37...
Bxc5 {[%clk 0:00:02.4]} 38. dxc5 {[%clk 0:00:10.6]} 38... Qf4 {[%clk 0:00:02.5]}
39. c3 {[%clk 0:00:09.9]} 39... Qe5 {[%clk 0:00:01.6]} 40. Ra1 {[%clk 0:00:10]}
40... Kb8 {[%clk 0:00:01.5]} 41. Qd4 {[%clk 0:00:08.5]} 41... Qe2 {[%clk
0:00:01.5]} 42. Qf4+ {[%clk 0:00:08]} 42... Kc8 {[%clk 0:00:01.3]} 43. Rxa5
{[%clk 0:00:08.3]} 43... Qe1+ {[%clk 0:00:01.2]} 44. Kh2 {[%clk 0:00:08.7]}
44... Qxc3 {[%clk 0:00:01.6]} 45. Ra8+ {[%clk 0:00:08.7]} 45... Kd7 {[%clk
0:00:02]} 46. Qf7# {[%clk 0:00:09.2]} 1-0

[Event "*** SCC Grand Prix: Titled Tuesday Blitz"]
[Site "Chess.com"]
[Date "2020.07.21"]
[Round "1"]
[White "ambaixador"]
[Black "NikolaGry"]
[Result "0-1"]
[WhiteElo "2302"]
[BlackElo "2640"]
[TimeControl "180+1"]
[EndTime "10:07:42 PDT"]
[Termination "NikolaGry won by checkmate"]

1. Nf3 {[%clk 0:02:59.4]} 1... c5 {[%clk 0:02:59.3]} 2. c4 {[%clk 0:02:59.1]}
2... b6 {[%clk 0:02:59.5]} 3. g3 {[%clk 0:02:59.4]} 3... Bb7 {[%clk 0:02:59.8]}
4. Bg2 {[%clk 0:03:00]} 4... Nf6 {[%clk 0:02:59.2]} 5. O-O {[%clk 0:02:59.9]}
5... e6 {[%clk 0:02:59.6]} 6. Nc3 {[%clk 0:02:59.3]} 6... Be7 {[%clk 0:02:58.7]}
7. d4 {[%clk 0:02:59.4]} 7... cxd4 {[%clk 0:02:58.9]} 8. Nxd4 {[%clk 0:02:55.2]}
8... Bxg2 {[%clk 0:02:58.2]} 9. Kxg2 {[%clk 0:02:56.1]} 9... Qc8 {[%clk
0:02:57.6]} 10. b3 {[%clk 0:02:55.3]} 10... O-O {[%clk 0:02:50.4]} 11. Bb2
{[%clk 0:02:55.1]} 11... Qb7+ {[%clk 0:02:45.3]} 12. Kg1 {[%clk 0:02:53.7]}
12... Rd8 {[%clk 0:02:39.1]} 13. Rc1 {[%clk 0:02:49.1]} 13... Nc6 {[%clk
0:02:32.8]} 14. Nxc6 {[%clk 0:01:52.3]} 14... Qxc6 {[%clk 0:02:30.5]} 15. Qd3
{[%clk 0:01:39.2]} 15... a6 {[%clk 0:02:27.6]} 16. Rfd1 {[%clk 0:01:37.1]} 16...
Rac8 {[%clk 0:02:23.9]} 17. Qb1 {[%clk 0:01:28.8]} 17... Qb7 {[%clk 0:02:19.2]}
18. Rd3 {[%clk 0:01:21.5]} 18... b5 {[%clk 0:02:12.9]} 19. cxb5 {[%clk
0:01:19.5]} 19... axb5 {[%clk 0:02:12.5]} 20. Rcd1 {[%clk 0:01:18.2]} 20... d5
{[%clk 0:02:11]} 21. Qa1 {[%clk 0:01:08.2]} 21... b4 {[%clk 0:02:02.6]} 22. Na4
{[%clk 0:01:07.5]} 22... h5 {[%clk 0:01:54.8]} 23. Rc1 {[%clk 0:01:06]} 23...
Rxc1+ {[%clk 0:01:50.9]} 24. Qxc1 {[%clk 0:01:06.9]} 24... Rc8 {[%clk
0:01:47.3]} 25. Qg5 {[%clk 0:01:03.8]} 25... Rc2 {[%clk 0:01:28.5]} 26. Rf3
{[%clk 0:00:49.5]} 26... Kf8 {[%clk 0:01:12.6]} 27. Bxf6 {[%clk 0:00:22.6]}
27... Bxf6 {[%clk 0:01:10.4]} 28. Qxh5 {[%clk 0:00:19.7]} 28... Rxe2 {[%clk
0:00:59.6]} 29. Rxf6 {[%clk 0:00:15.7]} 29... Re1+ {[%clk 0:00:58.9]} 30. Kg2
{[%clk 0:00:16.2]} 30... gxf6 {[%clk 0:00:58]} 31. Nc5 {[%clk 0:00:16.2]} 31...
Qc6 {[%clk 0:00:52.5]} 32. Nd3 {[%clk 0:00:09.3]} 32... Re4 {[%clk 0:00:49.3]}
33. f3 {[%clk 0:00:08.9]} 33... Qc2+ {[%clk 0:00:39.6]} 34. Kh3 {[%clk 0:00:09]}
34... Qxd3 {[%clk 0:00:38.4]} 35. fxe4 {[%clk 0:00:09.7]} 35... dxe4 {[%clk
0:00:29]} 36. Qh8+ {[%clk 0:00:07.9]} 36... Ke7 {[%clk 0:00:28.4]} 37. Qb8
{[%clk 0:00:08.8]} 37... f5 {[%clk 0:00:17.8]} 38. Qxb4+ {[%clk 0:00:08.1]}
38... Kf6 {[%clk 0:00:17.9]} 39. Qc4 {[%clk 0:00:04.6]} 39... Qf3 {[%clk
0:00:15]} 40. Qd4+ {[%clk 0:00:04.1]} 40... Kg6 {[%clk 0:00:14.8]} 41. Qe5
{[%clk 0:00:03.9]} 41... e3 {[%clk 0:00:11.4]} 42. Qh8 {[%clk 0:00:03.3]} 42...
Qg4+ {[%clk 0:00:09.7]} 43. Kg2 {[%clk 0:00:03.4]} 43... Qe4+ {[%clk 0:00:09.9]}
44. Kf1 {[%clk 0:00:03.3]} 44... Qf3+ {[%clk 0:00:09.6]} 45. Ke1 {[%clk
0:00:02.5]} 45... Qf2+ {[%clk 0:00:09.8]} 46. Kd1 {[%clk 0:00:03.4]} 46... Qd2#
{[%clk 0:00:10.3]} 0-1

[Event "*** SCC Grand Prix: Titled Tuesday Blitz"]
[Site "Chess.com"]
[Date "2020.07.21"]
[Round "1"]
[White "XxPetroffsxX"]
[Black "maciejos95"]
[Result "0-1"]
[WhiteElo "1918"]
[BlackElo "2478"]
[TimeControl "180+1"]
[EndTime "10:07:43 PDT"]
[Termination "maciejos95 won by resignation"]

1. e4 {[%clk 0:02:59.3]} 1... e6 {[%clk 0:02:59.9]} 2. d4 {[%clk 0:02:58.6]}
2... d5 {[%clk 0:02:59.8]} 3. Nc3 {[%clk 0:02:59.1]} 3... Nf6 {[%clk 0:02:59.6]}
4. e5 {[%clk 0:02:59.4]} 4... Nfd7 {[%clk 0:02:59.5]} 5. f4 {[%clk 0:02:59.6]}
5... c5 {[%clk 0:02:59.6]} 6. Nf3 {[%clk 0:03:00.1]} 6... Nc6 {[%clk 0:02:59.7]}
7. Be3 {[%clk 0:03:00.5]} 7... cxd4 {[%clk 0:02:58.8]} 8. Nxd4 {[%clk
0:03:00.1]} 8... Bc5 {[%clk 0:02:58.9]} 9. Nxc6 {[%clk 0:02:55.8]} 9... bxc6
{[%clk 0:02:57.3]} 10. Bxc5 {[%clk 0:02:55.7]} 10... Nxc5 {[%clk 0:02:57.4]} 11.
Qg4 {[%clk 0:02:43]} 11... O-O {[%clk 0:02:48.9]} 12. Bd3 {[%clk 0:02:39.6]}
12... f6 {[%clk 0:02:19.2]} 13. O-O {[%clk 0:02:34.2]} 13... f5 {[%clk
0:01:49.8]} 14. Qh5 {[%clk 0:02:30.1]} 14... Qb6 {[%clk 0:01:48.3]} 15. Kh1
{[%clk 0:02:29]} 15... Nxd3 {[%clk 0:01:43.9]} 16. cxd3 {[%clk 0:02:27.9]} 16...
Qxb2 {[%clk 0:01:44.1]} 17. Rac1 {[%clk 0:02:26.2]} 17... Ba6 {[%clk 0:01:41.1]}
18. Qf3 {[%clk 0:02:09.9]} 18... Rab8 {[%clk 0:01:21.7]} 19. h4 {[%clk
0:02:07.8]} 19... Rfc8 {[%clk 0:01:16.5]} 20. h5 {[%clk 0:02:01.8]} 20... h6
{[%clk 0:01:16.5]} 21. Na4 {[%clk 0:01:59.9]} 21... Qxa2 {[%clk 0:00:57.3]} 22.
Nc5 {[%clk 0:01:59.7]} 22... Bb5 {[%clk 0:00:41.6]} 23. Nxe6 {[%clk 0:01:56.5]}
23... Qa3 {[%clk 0:00:36.3]} 24. Qg3 {[%clk 0:01:51.5]} 24... Rb7 {[%clk
0:00:32.8]} 25. Nc5 {[%clk 0:01:47.8]} 25... Re7 {[%clk 0:00:29.2]} 26. Qg6
{[%clk 0:01:45.8]} 26... Rf8 {[%clk 0:00:23.4]} 27. Rfd1 {[%clk 0:01:23.5]}
27... a5 {[%clk 0:00:22.6]} 28. d4 {[%clk 0:01:17.6]} 28... Qe3 {[%clk
0:00:21.9]} 29. Ne6 {[%clk 0:01:13.3]} 29... Rfe8 {[%clk 0:00:21.3]} 30. Nxg7
{[%clk 0:01:05.9]} 30... Rxg7 {[%clk 0:00:17.6]} 31. Qxe8+ {[%clk 0:01:05.6]}
31... Kh7 {[%clk 0:00:18.2]} 32. Rc2 {[%clk 0:00:59.5]} 32... Bd3 {[%clk
0:00:17.2]} 33. Rcd2 {[%clk 0:00:58.4]} 33... Be4 {[%clk 0:00:17.2]} 34. Qg6+
{[%clk 0:00:58.1]} 34... Rxg6 {[%clk 0:00:17.1]} 35. hxg6+ {[%clk 0:00:58.3]}
35... Kxg6 {[%clk 0:00:17.7]} 36. Rb2 {[%clk 0:00:53]} 36... Qxf4 {[%clk
0:00:17.5]} 37. Rdd2 {[%clk 0:00:50.9]} 37... Qf1+ {[%clk 0:00:17.1]} 38. Kh2
{[%clk 0:00:50.7]} 38... Qf4+ {[%clk 0:00:17.7]} 39. Kh1 {[%clk 0:00:50.8]}
39... Qh4+ {[%clk 0:00:17]} 40. Kg1 {[%clk 0:00:50.5]} 40... Qe1+ {[%clk
0:00:17.7]} 41. Kh2 {[%clk 0:00:50.7]} 41... a4 {[%clk 0:00:18.3]} 42. Re2
{[%clk 0:00:44.3]} 42... Qh4+ {[%clk 0:00:18.1]} 43. Kg1 {[%clk 0:00:44.3]}
43... Qf4 {[%clk 0:00:17.9]} 44. Ra2 {[%clk 0:00:42.2]} 44... Qc1+ {[%clk
0:00:15.5]} 45. Kh2 {[%clk 0:00:41.8]} 45... Qc4 {[%clk 0:00:15.8]} 46. Red2
{[%clk 0:00:39.8]} 46... Bd3 {[%clk 0:00:15.6]} 47. Ra3 {[%clk 0:00:37.7]} 47...
Qxd4 {[%clk 0:00:16.1]} 48. Raxd3 {[%clk 0:00:37.4]} 48... Qxe5+ {[%clk
0:00:16.6]} 49. g3 {[%clk 0:00:37.3]} 49... f4 {[%clk 0:00:16.1]} 50. gxf4
{[%clk 0:00:36.8]} 50... Qxf4+ {[%clk 0:00:16.7]} 51. Rg3+ {[%clk 0:00:37.1]}
51... Kh5 {[%clk 0:00:16.6]} 52. Rg2 {[%clk 0:00:37.1]} 52... Kh4 {[%clk
0:00:16.9]} 53. Kg1 {[%clk 0:00:34.4]} 53... Qxg3 {[%clk 0:00:17.3]} 54. Rxg3
{[%clk 0:00:34.1]} 54... Kxg3 {[%clk 0:00:17.8]} 55. Kf1 {[%clk 0:00:35]} 55...
a3 {[%clk 0:00:18.4]} 56. Ke1 {[%clk 0:00:35.7]} 56... a2 {[%clk 0:00:18.9]} 0-1